[Event "*** Titled Tuesday Blitz"]
[Site "Chess.com"]
[Date "2019.10.01"]
[Round "9"]
[White "nitpicker"]
[Black "arjwezhrtdrz"]
[Result "1-0"]
[WhiteElo "2262"]
[BlackElo "2090"]
[TimeControl "180+2"]
[EndTime "15:13:23 PDT"]
[Termination "nitpicker won by resignation"]

1. d4 {[%clk 0:03:01.9]} 1... d6 {[%clk 0:03:00.7]} 2. e4 {[%clk 0:03:01.6]}
2... c6 {[%clk 0:03:01.7]} 3. a4 {[%clk 0:03:01.7]} 3... a5 {[%clk 0:03:02.2]}
4. Nc3 {[%clk 0:03:02.3]} 4... Nf6 {[%clk 0:03:03]} 5. h3 {[%clk 0:03:02]} 5...
Nbd7 {[%clk 0:03:03.8]} 6. g4 {[%clk 0:02:56.5]} 6... e5 {[%clk 0:03:05.6]} 7.
Be3 {[%clk 0:02:54.9]} 7... Be7 {[%clk 0:03:05.8]} 8. Bg2 {[%clk 0:02:37.2]}
8... Ng8 {[%clk 0:03:06.6]} 9. Qd2 {[%clk 0:02:35.4]} 9... h6 {[%clk 0:03:07.5]}
10. Nge2 {[%clk 0:02:34.2]} 10... Bg5 {[%clk 0:03:08]} 11. O-O {[%clk 0:02:14]}
11... Bxe3 {[%clk 0:03:08.8]} 12. Qxe3 {[%clk 0:02:15.2]} 12... Qg5 {[%clk
0:03:09.4]} 13. f4 {[%clk 0:02:14.4]} 13... Qh4 {[%clk 0:02:58.3]} 14. Rf2
{[%clk 0:02:00.9]} 14... Ngf6 {[%clk 0:02:47]} 15. Raf1 {[%clk 0:01:53.3]} 15...
O-O {[%clk 0:02:43]} 16. Ng3 {[%clk 0:01:09.9]} 16... exd4 {[%clk 0:02:14.3]}
17. Qxd4 {[%clk 0:01:11]} 17... Qxg3 {[%clk 0:02:12.7]} 18. Qxd6 {[%clk
0:01:12.5]} 18... Qe3 {[%clk 0:01:47.2]} 19. e5 {[%clk 0:01:07.2]} 19... Ne8
{[%clk 0:01:31]} 20. Qe7 {[%clk 0:01:07.6]} 20... Qc5 {[%clk 0:01:24.3]} 21. Qh4
{[%clk 0:01:08.5]} 21... Qb6 {[%clk 0:01:02.9]} 22. Ne4 {[%clk 0:01:06.7]} 22...
Nc5 {[%clk 0:01:01.5]} 23. g5 {[%clk 0:00:50.1]} 23... Nxe4 {[%clk 0:00:52.3]}
24. Bxe4 {[%clk 0:00:50.5]} 24... Qd8 {[%clk 0:00:26]} 25. Qh5 {[%clk
0:00:47.4]} 25... g6 {[%clk 0:00:09.9]} 26. Qxh6 {[%clk 0:00:45.8]} 26... Ng7
{[%clk 0:00:10.7]} 27. Qh4 {[%clk 0:00:32.3]} 27... Bf5 {[%clk 0:00:11]} 28. Bf3
{[%clk 0:00:25.9]} 28... Be6 {[%clk 0:00:12.1]} 29. Kh2 {[%clk 0:00:20]} 29...
Nf5 {[%clk 0:00:13]} 30. Qg4 {[%clk 0:00:19.3]} 30... Ne3 {[%clk 0:00:13.6]} 31.
Qg3 {[%clk 0:00:16]} 31... Nxf1+ {[%clk 0:00:14.4]} 32. Rxf1 {[%clk 0:00:17.9]}
32... Bf5 {[%clk 0:00:15.7]} 33. Bg4 {[%clk 0:00:14.4]} 33... Qd7 {[%clk
0:00:16.4]} 34. Rd1 {[%clk 0:00:11.2]} 34... Qe6 {[%clk 0:00:16.9]} 35. Rd6
{[%clk 0:00:08.7]} 35... Qc8 {[%clk 0:00:17.6]} 36. Rf6 {[%clk 0:00:09.3]} 36...
Bxg4 {[%clk 0:00:12.8]} 37. hxg4 {[%clk 0:00:10.3]} 37... Kg7 {[%clk 0:00:14.2]}
38. Qc3 {[%clk 0:00:09.4]} 38... Rh8+ {[%clk 0:00:14.6]} 39. Kg3 {[%clk
0:00:09.9]} 39... Qd8 {[%clk 0:00:08.6]} 40. e6 {[%clk 0:00:10]} 40... Kg8
{[%clk 0:00:06.5]} 41. Rxf7 {[%clk 0:00:10.4]} 41... Rh7 {[%clk 0:00:06.2]} 42.
e7 {[%clk 0:00:06.8]} 42... Qe8 {[%clk 0:00:06.3]} 43. Rf8+ {[%clk 0:00:06.6]}
43... Qxf8 {[%clk 0:00:07.1]} 44. exf8=Q+ {[%clk 0:00:07.6]} 44... Rxf8 {[%clk
0:00:08.9]} 45. Qxa5 {[%clk 0:00:06]} 45... Rhf7 {[%clk 0:00:09.1]} 46. Qe5
{[%clk 0:00:05.4]} 46... Rxf4 {[%clk 0:00:09.6]} 47. Qxf4 {[%clk 0:00:04.9]}
47... Rxf4 {[%clk 0:00:10.7]} 48. Kxf4 {[%clk 0:00:06.5]} 48... Kf7 {[%clk
0:00:12.6]} 49. Ke5 {[%clk 0:00:07.7]} 49... Ke7 {[%clk 0:00:14]} 50. b4 {[%clk
0:00:08.1]} 50... b6 {[%clk 0:00:15]} 51. a5 {[%clk 0:00:07.5]} 51... bxa5
{[%clk 0:00:16]} 52. bxa5 {[%clk 0:00:08.7]} 1-0

[Event "*** Titled Tuesday Blitz"]
[Site "Chess.com"]
[Date "2019.10.01"]
[Round "9"]
[White "Duhless"]
[Black "Spalir"]
[Result "0-1"]
[WhiteElo "3000"]
[BlackElo "2836"]
[TimeControl "180+2"]
[EndTime "15:13:28 PDT"]
[Termination "Spalir won on time"]

1. e4 {[%clk 0:03:01.9]} 1... e5 {[%clk 0:03:00.8]} 2. Nf3 {[%clk 0:03:02.4]}
2... Nc6 {[%clk 0:03:02.1]} 3. Bc4 {[%clk 0:03:03.9]} 3... Bc5 {[%clk 0:03:02]}
4. d3 {[%clk 0:03:03.6]} 4... Nf6 {[%clk 0:03:01.2]} 5. Nc3 {[%clk 0:03:04.8]}
5... d6 {[%clk 0:02:59.2]} 6. Na4 {[%clk 0:03:04.6]} 6... Bb6 {[%clk 0:02:56.8]}
7. a3 {[%clk 0:03:05.1]} 7... O-O {[%clk 0:02:55]} 8. O-O {[%clk 0:03:05.5]}
8... h6 {[%clk 0:02:54.8]} 9. h3 {[%clk 0:03:06.2]} 9... Re8 {[%clk 0:02:54]}
10. Re1 {[%clk 0:03:07.3]} 10... Be6 {[%clk 0:02:52.9]} 11. Bxe6 {[%clk
0:03:06.9]} 11... Rxe6 {[%clk 0:02:54.8]} 12. b4 {[%clk 0:03:07.4]} 12... Ne7
{[%clk 0:02:50.1]} 13. c4 {[%clk 0:03:04.7]} 13... Ng6 {[%clk 0:02:49.9]} 14. g3
{[%clk 0:03:01.8]} 14... c6 {[%clk 0:02:45.3]} 15. Nxb6 {[%clk 0:03:01.2]} 15...
axb6 {[%clk 0:02:46.2]} 16. a4 {[%clk 0:02:58.4]} 16... d5 {[%clk 0:02:43]} 17.
cxd5 {[%clk 0:02:57.5]} 17... cxd5 {[%clk 0:02:44.9]} 18. Qb3 {[%clk 0:02:54.7]}
18... Rd6 {[%clk 0:02:38.9]} 19. Be3 {[%clk 0:02:46.7]} 19... Qd7 {[%clk
0:02:34.8]} 20. Kg2 {[%clk 0:02:41.2]} 20... dxe4 {[%clk 0:02:22.2]} 21. dxe4
{[%clk 0:02:41.6]} 21... Nxe4 {[%clk 0:02:23.9]} 22. Red1 {[%clk 0:02:24.4]}
22... Rxd1 {[%clk 0:02:06.8]} 23. Rxd1 {[%clk 0:02:24.3]} 23... Qxa4 {[%clk
0:02:06.7]} 24. Rd8+ {[%clk 0:02:25.1]} 24... Kh7 {[%clk 0:02:04.1]} 25. Qxa4
{[%clk 0:02:26.2]} 25... Rxa4 {[%clk 0:02:04.4]} 26. Rd7 {[%clk 0:02:26.9]}
26... f6 {[%clk 0:01:49.4]} 27. b5 {[%clk 0:02:21.9]} 27... Rb4 {[%clk
0:01:45.1]} 28. Rxb7 {[%clk 0:02:22.1]} 28... Rxb5 {[%clk 0:01:45.2]} 29. h4
{[%clk 0:02:23.6]} 29... h5 {[%clk 0:01:41.4]} 30. Ne1 {[%clk 0:01:41.8]} 30...
Rb3 {[%clk 0:01:35.9]} 31. Rxb6 {[%clk 0:01:33.1]} 31... Rxb6 {[%clk 0:01:36.2]}
32. Bxb6 {[%clk 0:01:33.4]} 32... Ne7 {[%clk 0:01:37.8]} 33. Be3 {[%clk
0:01:32.2]} 33... Nd5 {[%clk 0:01:27.5]} 34. Bc1 {[%clk 0:01:34.1]} 34... Kg6
{[%clk 0:01:24.8]} 35. Ba3 {[%clk 0:01:31.6]} 35... Kf5 {[%clk 0:01:23.4]} 36.
Nc2 {[%clk 0:01:30.7]} 36... g5 {[%clk 0:01:19.9]} 37. hxg5 {[%clk 0:01:31.3]}
37... fxg5 {[%clk 0:01:21.4]} 38. f3 {[%clk 0:01:32.5]} 38... Nd2 {[%clk
0:01:17.5]} 39. Bc1 {[%clk 0:01:24.6]} 39... Nc4 {[%clk 0:01:16.4]} 40. Ne1
{[%clk 0:01:22.6]} 40... g4 {[%clk 0:01:10.4]} 41. fxg4+ {[%clk 0:01:15.4]}
41... Kxg4 {[%clk 0:01:12.3]} 42. Nd3 {[%clk 0:00:44.9]} 42... Nde3+ {[%clk
0:01:03.6]} 43. Bxe3 {[%clk 0:00:42.4]} 43... Nxe3+ {[%clk 0:01:05.5]} 44. Kf2
{[%clk 0:00:44]} 44... Nc4 {[%clk 0:01:05.2]} 45. Nc5 {[%clk 0:00:35.1]} 45...
Nd6 {[%clk 0:00:58.5]} 46. Kg2 {[%clk 0:00:35.2]} 46... Kf5 {[%clk 0:00:49.6]}
47. Kh3 {[%clk 0:00:25.5]} 47... Ne4 {[%clk 0:00:43.1]} 48. Nd3 {[%clk
0:00:25.8]} 48... Nf6 {[%clk 0:00:43.2]} 49. Kg2 {[%clk 0:00:22.8]} 49... Ke4
{[%clk 0:00:41.7]} 50. Nf2+ {[%clk 0:00:18.3]} 50... Ke3 {[%clk 0:00:42.5]} 51.
Nh3 {[%clk 0:00:17.7]} 51... Ne4 {[%clk 0:00:38.9]} 52. Ng1 {[%clk 0:00:16.9]}
52... Ng5 {[%clk 0:00:39.2]} 53. Kf1 {[%clk 0:00:13.6]} 53... Ne4 {[%clk
0:00:34.6]} 54. Kg2 {[%clk 0:00:14.3]} 54... Ng5 {[%clk 0:00:34.4]} 55. Kf1
{[%clk 0:00:07.9]} 55... e4 {[%clk 0:00:35.7]} 56. Kg2 {[%clk 0:00:07.3]} 56...
Kd2 {[%clk 0:00:34.4]} 57. g4 {[%clk 0:00:02.9]} 57... h4 {[%clk 0:00:30.8]} 0-1

[Event "*** Titled Tuesday Blitz"]
[Site "Chess.com"]
[Date "2019.10.01"]
[Round "9"]
[White "IvanRadivojevic"]
[Black "731291"]
[Result "1/2-1/2"]
[WhiteElo "2506"]
[BlackElo "2650"]
[TimeControl "180+2"]
[EndTime "15:13:41 PDT"]
[Termination "Game drawn - insufficient material"]

1. e4 {[%clk 0:03:00.6]} 1... e6 {[%clk 0:02:59.6]} 2. d4 {[%clk 0:03:01.5]}
2... d5 {[%clk 0:03:00.5]} 3. Nc3 {[%clk 0:03:03.1]} 3... Bb4 {[%clk 0:03:01]}
4. e5 {[%clk 0:03:03.7]} 4... c5 {[%clk 0:03:02.3]} 5. a3 {[%clk 0:03:05.1]}
5... Ba5 {[%clk 0:03:03.4]} 6. b4 {[%clk 0:03:05.2]} 6... cxd4 {[%clk
0:03:04.4]} 7. Nb5 {[%clk 0:03:06.2]} 7... Bc7 {[%clk 0:03:05.9]} 8. f4 {[%clk
0:03:07.2]} 8... Bd7 {[%clk 0:03:07.3]} 9. Nxd4 {[%clk 0:03:06.2]} 9... Ne7
{[%clk 0:03:05.2]} 10. Ngf3 {[%clk 0:03:06.7]} 10... Nbc6 {[%clk 0:03:05.2]} 11.
Bd3 {[%clk 0:03:06.8]} 11... Nxd4 {[%clk 0:03:06.7]} 12. Nxd4 {[%clk 0:03:07.7]}
12... Bb6 {[%clk 0:03:08.2]} 13. Be3 {[%clk 0:03:06.7]} 13... Nc6 {[%clk
0:03:05.9]} 14. Nxc6 {[%clk 0:02:56.1]} 14... Bxc6 {[%clk 0:03:00.5]} 15. Qe2
{[%clk 0:02:52.9]} 15... Qh4+ {[%clk 0:02:41.1]} 16. Qf2 {[%clk 0:02:41.4]}
16... Qxf2+ {[%clk 0:02:38.5]} 17. Kxf2 {[%clk 0:02:37.1]} 17... f6 {[%clk
0:02:31.9]} 18. exf6 {[%clk 0:02:35.2]} 18... gxf6 {[%clk 0:02:32]} 19. Rhe1
{[%clk 0:02:36.6]} 19... Kf7 {[%clk 0:02:27.7]} 20. b5 {[%clk 0:02:21.3]} 20...
Bd7 {[%clk 0:02:28.4]} 21. c4 {[%clk 0:02:17.7]} 21... dxc4 {[%clk 0:02:19.2]}
22. Bxc4 {[%clk 0:02:17.7]} 22... Rac8 {[%clk 0:02:21.1]} 23. Rac1 {[%clk
0:02:14.6]} 23... f5 {[%clk 0:01:58.4]} 24. Bxb6 {[%clk 0:02:07.9]} 24... axb6
{[%clk 0:01:55.4]} 25. Rcd1 {[%clk 0:01:42.1]} 25... Rxc4 {[%clk 0:01:25.6]} 26.
Rxd7+ {[%clk 0:01:41.6]} 26... Kf6 {[%clk 0:01:27.5]} 27. Rxb7 {[%clk 0:01:35]}
27... Rxf4+ {[%clk 0:01:26.7]} 28. Kg3 {[%clk 0:01:34.3]} 28... Rg4+ {[%clk
0:01:10]} 29. Kf3 {[%clk 0:01:33.1]} 29... Ra8 {[%clk 0:01:11.3]} 30. Rxb6
{[%clk 0:01:27.3]} 30... Rxa3+ {[%clk 0:01:12.3]} 31. Kf2 {[%clk 0:01:28.5]}
31... Rf4+ {[%clk 0:00:47.1]} 32. Kg1 {[%clk 0:01:24.5]} 32... Re4 {[%clk
0:00:49]} 33. Rxe4 {[%clk 0:01:20]} 33... fxe4 {[%clk 0:00:50.9]} 34. Kf2 {[%clk
0:01:10.1]} 34... Ke5 {[%clk 0:00:51.6]} 35. Rb7 {[%clk 0:01:09.7]} 35... Ra2+
{[%clk 0:00:52.3]} 36. Kf1 {[%clk 0:01:07.5]} 36... Kd4 {[%clk 0:00:50.4]} 37.
Rxh7 {[%clk 0:01:06.3]} 37... Kd3 {[%clk 0:00:51.4]} 38. Rd7+ {[%clk 0:00:58.5]}
38... Ke3 {[%clk 0:00:52.3]} 39. Rd1 {[%clk 0:00:56.4]} 39... Rf2+ {[%clk
0:00:52.6]} 40. Kg1 {[%clk 0:00:57.4]} 40... Rb2 {[%clk 0:00:54.5]} 41. h4
{[%clk 0:00:48.2]} 41... Rxb5 {[%clk 0:00:53.9]} 42. Rd6 {[%clk 0:00:26.1]}
42... Rb1+ {[%clk 0:00:34]} 43. Kh2 {[%clk 0:00:26.8]} 43... e5 {[%clk
0:00:35.9]} 44. h5 {[%clk 0:00:27.3]} 44... Kf4 {[%clk 0:00:31.5]} 45. h6 {[%clk
0:00:26.3]} 45... Rb7 {[%clk 0:00:29.5]} 46. Kg1 {[%clk 0:00:22.3]} 46... e3
{[%clk 0:00:30.2]} 47. Kf1 {[%clk 0:00:19.8]} 47... Rb1+ {[%clk 0:00:30.7]} 48.
Ke2 {[%clk 0:00:20.5]} 48... Rb2+ {[%clk 0:00:32.6]} 49. Kf1 {[%clk 0:00:21.4]}
49... e2+ {[%clk 0:00:33.2]} 50. Kf2 {[%clk 0:00:21.2]} 50... e1=Q+ {[%clk
0:00:23.5]} 51. Kxe1 {[%clk 0:00:22.1]} 51... Rxg2 {[%clk 0:00:25.4]} 52. h7
{[%clk 0:00:22.4]} 52... Rh2 {[%clk 0:00:26.7]} 53. Rd7 {[%clk 0:00:22.6]} 53...
Ke3 {[%clk 0:00:27.4]} 54. Kf1 {[%clk 0:00:23.8]} 54... e4 {[%clk 0:00:28.9]}
55. Kg1 {[%clk 0:00:24.6]} 55... Rh6 {[%clk 0:00:29.7]} 56. Kg2 {[%clk
0:00:24.5]} 56... Ke2 {[%clk 0:00:30.7]} 57. Kg3 {[%clk 0:00:25.8]} 57... e3
{[%clk 0:00:31.1]} 58. Kg4 {[%clk 0:00:26.8]} 58... Kf2 {[%clk 0:00:32.7]} 59.
Kg5 {[%clk 0:00:27.3]} 59... Rh1 {[%clk 0:00:34.1]} 60. Kg6 {[%clk 0:00:26.9]}
60... e2 {[%clk 0:00:34.9]} 61. Rd2 {[%clk 0:00:26.2]} 61... Ke3 {[%clk
0:00:30.7]} 62. Rxe2+ {[%clk 0:00:27.1]} 62... Kxe2 {[%clk 0:00:32.6]} 63. Kg7
{[%clk 0:00:28.5]} 63... Rg1+ {[%clk 0:00:34.1]} 64. Kf7 {[%clk 0:00:28.6]}
64... Rh1 {[%clk 0:00:36]} 65. Kg7 {[%clk 0:00:29.7]} 65... Rxh7+ {[%clk
0:00:37.1]} 66. Kxh7 {[%clk 0:00:30.7]} 1/2-1/2

[Event "*** Titled Tuesday Blitz"]
[Site "Chess.com"]
[Date "2019.10.01"]
[Round "9"]
[White "dopolian"]
[Black "SloLev"]
[Result "1-0"]
[WhiteElo "2362"]
[BlackElo "2460"]
[TimeControl "180+2"]
[EndTime "15:13:52 PDT"]
[Termination "dopolian won by resignation"]

1. e4 {[%clk 0:03:01.9]} 1... e5 {[%clk 0:02:56.7]} 2. Nf3 {[%clk 0:03:03]} 2...
Nc6 {[%clk 0:02:57.7]} 3. Bb5 {[%clk 0:03:04.3]} 3... Nge7 {[%clk 0:02:58.5]} 4.
d4 {[%clk 0:03:00.1]} 4... exd4 {[%clk 0:02:58.6]} 5. Nxd4 {[%clk 0:03:02]} 5...
g6 {[%clk 0:02:59.7]} 6. Bg5 {[%clk 0:03:00.5]} 6... Bg7 {[%clk 0:02:58]} 7. c3
{[%clk 0:02:59.9]} 7... a6 {[%clk 0:02:56]} 8. Ba4 {[%clk 0:02:59]} 8... O-O
{[%clk 0:02:56.9]} 9. O-O {[%clk 0:02:59.6]} 9... h6 {[%clk 0:02:55.1]} 10. Be3
{[%clk 0:03:00.6]} 10... b5 {[%clk 0:02:51.1]} 11. Bc2 {[%clk 0:02:57.2]} 11...
Bb7 {[%clk 0:02:49.9]} 12. Nd2 {[%clk 0:02:57.3]} 12... d5 {[%clk 0:02:46.3]}
13. exd5 {[%clk 0:02:51.1]} 13... Nxd5 {[%clk 0:02:42.5]} 14. Nxc6 {[%clk
0:02:39.6]} 14... Bxc6 {[%clk 0:02:42.2]} 15. Bc5 {[%clk 0:02:39.5]} 15... Re8
{[%clk 0:02:42.2]} 16. Nf3 {[%clk 0:02:36.8]} 16... Nf4 {[%clk 0:02:38]} 17. Be3
{[%clk 0:02:31.2]} 17... Qf6 {[%clk 0:02:27.2]} 18. Bd4 {[%clk 0:02:24.2]} 18...
Ne2+ {[%clk 0:02:27.2]} 19. Kh1 {[%clk 0:02:23.2]} 19... Nxd4 {[%clk 0:02:26.4]}
20. Nxd4 {[%clk 0:02:19.2]} 20... Bb7 {[%clk 0:02:25.5]} 21. f3 {[%clk
0:02:02.3]} 21... Rad8 {[%clk 0:02:19.2]} 22. Re1 {[%clk 0:01:58.6]} 22... Rxe1+
{[%clk 0:01:52.7]} 23. Qxe1 {[%clk 0:01:59.8]} 23... c5 {[%clk 0:01:54.2]} 24.
Nb3 {[%clk 0:01:58.9]} 24... Bxf3 {[%clk 0:01:30.1]} 25. Qf2 {[%clk 0:01:27.3]}
25... Ba8 {[%clk 0:01:20.9]} 26. Qxf6 {[%clk 0:01:28]} 26... Bxf6 {[%clk
0:01:21.8]} 27. Nxc5 {[%clk 0:01:29.3]} 27... Rd2 {[%clk 0:01:23.2]} 28. Be4
{[%clk 0:01:25.7]} 28... Be7 {[%clk 0:01:14.6]} 29. Nb3 {[%clk 0:01:17.6]} 29...
Rd8 {[%clk 0:01:14.9]} 30. Bxa8 {[%clk 0:01:17.4]} 30... Rxa8 {[%clk 0:01:16.8]}
31. a4 {[%clk 0:01:15.8]} 31... Rb8 {[%clk 0:01:16.5]} 32. a5 {[%clk 0:01:10.4]}
32... Bf6 {[%clk 0:01:05.3]} 33. Rd1 {[%clk 0:01:04]} 33... b4 {[%clk
0:01:04.1]} 34. c4 {[%clk 0:00:55.1]} 34... Bxb2 {[%clk 0:01:01.2]} 35. Rd6
{[%clk 0:00:56.5]} 35... Re8 {[%clk 0:01:00.3]} 36. Kg1 {[%clk 0:00:53.2]} 36...
Re3 {[%clk 0:00:56.9]} 37. Nc5 {[%clk 0:00:46.7]} 37... Ra3 {[%clk 0:00:58.3]}
38. Nxa6 {[%clk 0:00:39.5]} 38... Rxa5 {[%clk 0:00:58]} 39. Nxb4 {[%clk
0:00:39]} 39... Ba3 {[%clk 0:00:53.6]} 40. Rd8+ {[%clk 0:00:32.7]} 40... Kg7
{[%clk 0:00:53.8]} 41. Nd3 {[%clk 0:00:34.2]} 41... Be7 {[%clk 0:00:50.8]} 42.
Rd7 {[%clk 0:00:34.9]} 42... Bf6 {[%clk 0:00:51.5]} 43. Kf2 {[%clk 0:00:36]}
43... Ra2+ {[%clk 0:00:50.7]} 44. Kf3 {[%clk 0:00:36.6]} 44... g5 {[%clk
0:00:50.5]} 45. c5 {[%clk 0:00:35.8]} 45... Rc2 {[%clk 0:00:50]} 46. h3 {[%clk
0:00:30.1]} 46... h5 {[%clk 0:00:48.6]} 47. g4 {[%clk 0:00:29.3]} 47... h4
{[%clk 0:00:50]} 48. Rd5 {[%clk 0:00:27]} 48... Kg6 {[%clk 0:00:49.1]} 49. Ke4
{[%clk 0:00:26.1]} 49... Rh2 {[%clk 0:00:48.5]} 50. c6 {[%clk 0:00:25.9]} 50...
Re2+ {[%clk 0:00:44.6]} 51. Kf3 {[%clk 0:00:26.8]} 51... Re8 {[%clk 0:00:43.9]}
52. Rc5 {[%clk 0:00:25.8]} 52... Be7 {[%clk 0:00:42.3]} 53. Rc4 {[%clk
0:00:26.6]} 53... Bd6 {[%clk 0:00:41.4]} 54. Nf2 {[%clk 0:00:24.6]} 54... f5
{[%clk 0:00:38.5]} 55. gxf5+ {[%clk 0:00:24.9]} 55... Kxf5 {[%clk 0:00:40.4]}
56. Ne4 {[%clk 0:00:26.6]} 56... Be5 {[%clk 0:00:38.6]} 57. Nc5 {[%clk
0:00:25.9]} 57... Ra8 {[%clk 0:00:36]} 58. Nd7 {[%clk 0:00:25.9]} 58... Ra3+
{[%clk 0:00:36.8]} 59. Ke2 {[%clk 0:00:25.5]} 59... Bc7 {[%clk 0:00:35.7]} 60.
Rc5+ {[%clk 0:00:21.3]} 60... Ke4 {[%clk 0:00:36.9]} 61. Rxg5 {[%clk 0:00:20.3]}
61... Rxh3 {[%clk 0:00:38.3]} 62. Nc5+ {[%clk 0:00:17.2]} 62... Kd4 {[%clk
0:00:29.7]} 63. Ne6+ {[%clk 0:00:19.1]} 63... Ke4 {[%clk 0:00:31.1]} 64. Nxc7
{[%clk 0:00:20.8]} 64... Rc3 {[%clk 0:00:32.2]} 65. Rg6 {[%clk 0:00:21]} 65...
h3 {[%clk 0:00:30.5]} 66. Kf2 {[%clk 0:00:21.7]} 66... Kf4 {[%clk 0:00:30.2]}
67. Nd5+ {[%clk 0:00:21.6]} 67... Kf5 {[%clk 0:00:30.5]} 68. Nxc3 {[%clk
0:00:23.1]} 68... h2 {[%clk 0:00:31.4]} 69. Kg2 {[%clk 0:00:23.7]} 1-0

[Event "*** Titled Tuesday Blitz"]
[Site "Chess.com"]
[Date "2019.10.01"]
[Round "9"]
[White "Witik"]
[Black "kosmeg"]
[Result "1-0"]
[WhiteElo "2654"]
[BlackElo "2499"]
[TimeControl "180+2"]
[EndTime "15:13:55 PDT"]
[Termination "Witik won by resignation"]

1. e4 {[%clk 0:03:01.9]} 1... e5 {[%clk 0:03:00.3]} 2. Nf3 {[%clk 0:03:01.6]}
2... Nc6 {[%clk 0:03:01.6]} 3. Nc3 {[%clk 0:03:02.3]} 3... Nf6 {[%clk
0:03:02.2]} 4. Bb5 {[%clk 0:03:03.2]} 4... Bb4 {[%clk 0:03:02.9]} 5. O-O {[%clk
0:03:03.3]} 5... O-O {[%clk 0:03:04]} 6. d3 {[%clk 0:03:03.9]} 6... Bxc3 {[%clk
0:03:04.1]} 7. bxc3 {[%clk 0:03:04.6]} 7... d6 {[%clk 0:03:05.6]} 8. Re1 {[%clk
0:03:01.7]} 8... a6 {[%clk 0:03:06.6]} 9. Bxc6 {[%clk 0:02:53.7]} 9... bxc6
{[%clk 0:03:07.4]} 10. Bg5 {[%clk 0:02:54.2]} 10... h6 {[%clk 0:03:06.3]} 11.
Bh4 {[%clk 0:02:54.3]} 11... Qe7 {[%clk 0:03:02.4]} 12. Nd2 {[%clk 0:02:32.8]}
12... Qe6 {[%clk 0:03:00.9]} 13. c4 {[%clk 0:02:27.9]} 13... Nd7 {[%clk
0:02:54]} 14. f3 {[%clk 0:02:17.6]} 14... Qg6 {[%clk 0:02:52.5]} 15. Nf1 {[%clk
0:02:15.2]} 15... Nc5 {[%clk 0:02:51.9]} 16. Bf2 {[%clk 0:02:11.4]} 16... Ne6
{[%clk 0:02:52]} 17. Kh1 {[%clk 0:02:12.3]} 17... f5 {[%clk 0:02:50.9]} 18. exf5
{[%clk 0:02:08.6]} 18... Rxf5 {[%clk 0:02:49.1]} 19. Ng3 {[%clk 0:02:10.2]}
19... Rf8 {[%clk 0:02:47.9]} 20. c5 {[%clk 0:02:11.4]} 20... Nf4 {[%clk
0:02:38.7]} 21. Qd2 {[%clk 0:02:09.2]} 21... Be6 {[%clk 0:02:26.1]} 22. d4
{[%clk 0:02:01.6]} 22... exd4 {[%clk 0:02:02.6]} 23. Bxd4 {[%clk 0:02:00.7]}
23... Bd5 {[%clk 0:02:03]} 24. Re7 {[%clk 0:01:35.1]} 24... Rf7 {[%clk
0:02:02.6]} 25. Rae1 {[%clk 0:01:32.4]} 25... Raf8 {[%clk 0:02:00.7]} 26. Rxf7
{[%clk 0:01:19.3]} 26... Qxf7 {[%clk 0:01:56.1]} 27. Kg1 {[%clk 0:01:10.9]}
27... Bxa2 {[%clk 0:01:45.9]} 28. cxd6 {[%clk 0:01:08.7]} 28... cxd6 {[%clk
0:01:46.5]} 29. Ne4 {[%clk 0:01:10.4]} 29... Qd5 {[%clk 0:01:39.6]} 30. c3
{[%clk 0:01:07.5]} 30... Bc4 {[%clk 0:01:33.4]} 31. Qf2 {[%clk 0:00:57.3]} 31...
c5 {[%clk 0:01:28.9]} 32. Bf6 {[%clk 0:00:24.2]} 32... Kh7 {[%clk 0:00:52.7]}
33. Be7 {[%clk 0:00:20.1]} 33... Rf7 {[%clk 0:00:44.7]} 34. Nxd6 {[%clk
0:00:15.2]} 34... Rxe7 {[%clk 0:00:44.4]} 35. Rxe7 {[%clk 0:00:15.3]} 35... Qxd6
{[%clk 0:00:45.6]} 36. Re4 {[%clk 0:00:14.8]} 36... Qd1+ {[%clk 0:00:44]} 37.
Re1 {[%clk 0:00:15.8]} 37... Qd5 {[%clk 0:00:41]} 38. Qe3 {[%clk 0:00:14.3]}
38... Ng6 {[%clk 0:00:40.1]} 39. h4 {[%clk 0:00:12.8]} 39... Nxh4 {[%clk
0:00:32.9]} 40. Qe7 {[%clk 0:00:08.7]} 40... Nf5 {[%clk 0:00:31.6]} 41. Qe5
{[%clk 0:00:08.7]} 41... Qxe5 {[%clk 0:00:17.4]} 42. Rxe5 {[%clk 0:00:10.6]}
42... Bd3 {[%clk 0:00:18.7]} 43. Rxc5 {[%clk 0:00:12.4]} 43... Kg6 {[%clk
0:00:19.4]} 44. c4 {[%clk 0:00:13]} 44... Kg5 {[%clk 0:00:20.2]} 45. Rc7 {[%clk
0:00:12.7]} 45... h5 {[%clk 0:00:17.7]} 46. c5 {[%clk 0:00:13.8]} 46... Kf4
{[%clk 0:00:18.4]} 47. Kf2 {[%clk 0:00:15.3]} 47... g5 {[%clk 0:00:17.7]} 48. c6
{[%clk 0:00:16.4]} 48... g4 {[%clk 0:00:17.4]} 49. fxg4 {[%clk 0:00:16.9]} 49...
hxg4 {[%clk 0:00:19.3]} 50. Ra7 {[%clk 0:00:15.7]} 50... g3+ {[%clk 0:00:19.8]}
51. Kg1 {[%clk 0:00:15.9]} 51... Bb5 {[%clk 0:00:12.6]} 52. c7 {[%clk
0:00:17.1]} 52... Nd6 {[%clk 0:00:13.7]} 53. Ra8 {[%clk 0:00:18.5]} 53... Ke3
{[%clk 0:00:12.6]} 54. Rd8 {[%clk 0:00:19]} 54... Nb7 {[%clk 0:00:02.9]} 55.
c8=Q {[%clk 0:00:15.6]} 55... Nxd8 {[%clk 0:00:03.4]} 56. Qxd8 {[%clk
0:00:17.5]} 56... Kf4 {[%clk 0:00:03.9]} 57. Qd6+ {[%clk 0:00:17.6]} 57... Kg4
{[%clk 0:00:04.9]} 58. Qe5 {[%clk 0:00:17.5]} 58... Kh4 {[%clk 0:00:03.2]} 59.
Qf4+ {[%clk 0:00:17.9]} 59... Kh5 {[%clk 0:00:05.1]} 60. Qxg3 {[%clk 0:00:19.5]}
60... Kh6 {[%clk 0:00:06.3]} 61. Qf4+ {[%clk 0:00:20.5]} 61... Kh7 {[%clk
0:00:08.2]} 62. Kf2 {[%clk 0:00:21.8]} 1-0